bitfinex-derivatives/quotes_BNBF0:USTF0_20251027
["timestamp","ask_amount","ask_price","bid_price","bid_amount"]
[1761551771368,0.15017834,1160.5,1158.3,1.735]
[1761551771570,0.15017834,1160.5,1158.4,0.61569148]
[1761551771772,0.15017834,1160.5,1158.5,0.61569148]
[1761551772068,0.15017834,1160.5,1158.6,0.61569148]
[1761551772268,0.15017834,1160.5,1158.3,1.735]
[1761551772469,0.15017834,1160.5,1158.4,0.61547303]
[1761551772668,0.15017834,1160.5,1158.5,0.61547303]
[1761551772870,0.15017834,1160.5,1158.6,0.61547303]
[1761551773071,0.15017834,1160.5,1158.3,1.735]
[1761551773271,0.15017834,1160.5,1158.4,0.6154451]
[1761551773470,0.15017834,1160.5,1158.5,0.6154451]
[1761551773674,2.1436001,1161.0,1158.3,1.735]
[1761551773876,0.15009866,1160.7,1158.4,0.61526589]
[1761551774077,2.1436001,1161.2,1158.5,0.61526589]
[1761551774272,2.1436001,1161.2,1158.6,0.61526589]
[1761551774575,0.15010125,1160.9,1158.7,0.61526589]
[1761551774875,0.15010125,1160.9,1158.4,0.63974778]
[1761551775075,0.15010125,1160.9,1158.5,0.61472972]
[1761551775370,0.15010125,1160.9,1158.6,0.61472972]
[1761551775576,0.15010125,1160.9,1158.7,0.61472972]
[1761551775771,0.15010125,1160.9,1158.4,0.63974778]
[1761551775975,0.15010125,1160.9,1158.5,0.6144408]
[1761551776172,0.15010125,1160.9,1158.6,0.6144408]
[1761551776376,0.15010125,1160.9,1158.7,0.6144408]
[1761551776574,0.15010125,1160.9,1158.8,0.6144408]
[1761551776776,0.15010125,1160.9,1158.4,0.63974778]
[1761551776975,0.15010125,1160.9,1158.5,0.61418876]
[1761551777282,0.15010125,1160.9,1158.6,0.61418876]
[1761551777477,0.15010125,1160.9,1158.7,0.61418876]
[1761551777681,0.15010125,1160.9,1158.8,0.61418876]
[1761551777981,0.15010125,1160.9,1158.4,0.63974778]
[1761551778282,0.15010125,1160.9,1158.5,0.61237927]
[1761551778481,0.15010125,1160.9,1158.6,0.61237927]
[1761551778677,0.15010125,1160.9,1158.7,0.61237927]
[1761551778979,0.15010125,1160.9,1158.8,0.61237927]
[1761551779179,0.15010125,1160.9,1158.3,2.37474778]
[1761551779477,0.15010125,1160.9,1158.4,0.61036343]
[1761551779680,0.15010125,1160.9,1158.5,0.61036343]
[1761551779878,0.15010125,1160.9,1158.6,0.61036343]
[1761551780081,0.15010125,1160.9,1158.7,0.61036343]
[1761551780278,0.15010125,1160.9,1158.8,0.61036343]
[1761551780582,0.15010125,1160.9,1158.3,2.37474778]
[1761551780780,0.15010125,1160.9,1158.4,0.6101623]
[1761551780979,0.15010125,1160.9,1158.5,0.6101623]
[1761551781282,3.0010402,1162.6,1158.6,0.6101623]
[1761551781482,2.1436001,1162.7,1158.7,0.6101623]
[1761551781679,0.15005854,1161.0,1158.8,0.6101623]
[1761551781982,2.1436001,1162.7,1158.9,0.6101623]
[1761551782179,0.15002619,1161.0,1159.0,0.6101623]
[1761551782382,2.1436001,1162.5,1158.4,0.63974778]
[1761551782583,0.15001972,1161.0,1158.5,0.6095921]
[1761551782878,2.1436001,1162.5,1158.6,0.6095921]
[1761551783084,2.1436001,1162.5,1158.7,0.6095921]
[1761551783284,0.15004236,1161.0,1158.8,0.6095921]
[1761551783479,2.1436001,1162.6,1158.9,0.6095921]
[1761551783684,0.15003266,1161.0,1159.0,0.6095921]
[1761551783883,0.15003266,1161.0,1158.5,0.63974778]
[1761551784079,2.1436001,1162.6,1158.6,0.60939187]
[1761551784284,0.15002296,1161.0,1158.7,0.60939187]
[1761551784485,3.0010402,1163.2,1158.8,0.60939187]
[1761551784683,2.1436001,1163.4,1158.9,0.60939187]
[1761551784883,0.15003266,1161.0,1159.0,0.60939187]
[1761551785178,2.1436001,1163.4,1158.3,2.37474778]
[1761551785377,0.14999709,1161.0,1158.4,0.60572796]
[1761551785580,2.1436001,1163.2,1158.5,0.60572796]
[1761551785780,2.1436001,1162.3,1158.7,0.63974778]
[1761551786082,0.1500042,1161.2,1158.8,0.60572796]
[1761551786284,2.1436001,1162.1,1158.9,0.60572796]
[1761551786479,0.15003007,1161.5,1159.0,0.60572796]
[1761551786679,0.15003007,1161.5,1159.1,0.60572796]
[1761551786882,0.15003007,1161.5,1158.7,0.63974778]
[1761551787179,0.15003007,1161.5,1158.8,0.60527971]
[1761551787384,0.15003007,1161.5,1158.9,0.60527971]
[1761551787584,0.15003007,1161.5,1159.0,0.60527971]
[1761551787885,0.15003007,1161.5,1159.1,0.60527971]
[1761551788081,0.15003007,1161.5,1158.7,0.63974778]
[1761551788285,0.15003007,1161.5,1158.8,0.60501556]
[1761551788481,0.15003007,1161.5,1158.9,0.60501556]
[1761551788681,0.15003007,1161.5,1159.0,0.60501556]
[1761551788883,0.15003007,1161.5,1159.1,0.60501556]
[1761551789183,0.15003007,1161.5,1158.7,0.63974778]
[1761551789383,0.15003007,1161.5,1158.8,0.60307336]
[1761551789583,0.15003007,1161.5,1158.9,0.60307336]
[1761551789788,0.15003007,1161.5,1159.0,0.60307336]
[1761551789987,0.15003007,1161.5,1159.1,0.60307336]
[1761551790186,0.15003007,1161.5,1159.2,0.60307336]
[1761551790385,0.15003007,1161.5,1158.7,0.63974778]
[1761551790591,0.15003007,1161.5,1158.8,0.6028085]
[1761551790787,0.15003007,1161.5,1158.9,0.6028085]
[1761551790991,0.15003007,1161.5,1159.0,0.6028085]
[1761551791194,0.15003007,1161.5,1159.1,0.6028085]
[1761551791390,0.15003007,1161.5,1159.2,0.6028085]
[1761551791589,0.15003007,1161.5,1158.7,0.63974778]
[1761551791886,0.15003007,1161.5,1158.8,0.60259836]
[1761551792090,0.15003007,1161.5,1158.9,0.60259836]
[1761551792289,0.15003007,1161.5,1159.0,0.60259836]
[1761551792492,0.15003007,1161.5,1159.1,0.60259836]
[1761551792691,0.15003007,1161.5,1159.2,0.60259836]
[1761551792889,0.15003007,1161.5,1158.7,0.63974778]
[1761551793090,0.15003007,1161.5,1158.8,0.60148984]
[1761551793290,0.15003007,1161.5,1158.9,0.60148984]
[1761551793495,0.15003007,1161.5,1159.0,0.60148984]
[1761551793689,0.15003007,1161.5,1159.1,0.60148984]
[1761551793894,0.15003007,1161.5,1159.2,0.60148984]
[1761551794190,0.15003007,1161.5,1158.7,0.63974778]
[1761551794395,0.15003007,1161.5,1158.8,0.6012352]
[1761551794594,0.15003007,1161.5,1158.9,0.6012352]
[1761551794792,0.15003007,1161.5,1159.0,0.6012352]
[1761551794996,0.15003007,1161.5,1159.1,0.6012352]
[1761551795298,0.15003007,1161.5,1159.2,0.6012352]
[1761551795597,0.15003007,1161.5,1158.7,0.63974778]
[1761551795797,0.15003007,1161.5,1158.8,0.59944716]
[1761551795994,0.15003007,1161.5,1158.9,0.59944716]
[1761551796197,0.15003007,1161.5,1159.0,0.59944716]
[1761551796497,0.15003007,1161.5,1159.1,0.59944716]
[1761551796695,0.15003007,1161.5,1159.2,0.59944716]
[1761551796895,0.15003007,1161.5,1158.7,0.63974778]
[1761551797101,0.15003007,1161.5,1158.8,0.59776772]
[1761551797295,0.15003007,1161.5,1158.9,0.59776772]
[1761551797497,0.15003007,1161.5,1159.0,0.59776772]
[1761551797699,0.15003007,1161.5,1158.7,0.63974778]
[1761551797700,0.15003007,1161.5,1159.1,0.59776772]
[1761551797898,0.15003007,1161.5,1159.2,2.00676772]
[1761551798100,0.15003007,1161.5,1159.2,1.409]
[1761551824123,2.1436001,1160.8,1159.2,1.409]
[1761551826226,2.1436001,1160.6,1159.2,1.409]
[1761551827127,2.1436001,1160.6,1157.4,0.63974778]
[1761551827326,2.1436001,1160.7,1157.5,0.57579104]
[1761551827624,2.1436001,1160.7,1157.6,0.57579104]
[1761551827823,2.1436001,1160.7,1157.7,0.57579104]
[1761551828029,2.1436001,1160.7,1157.3,0.63974778]
[1761551828228,2.1436001,1160.7,1157.4,0.57523856]
[1761551828430,2.1436001,1160.4,1157.5,0.57523856]
[1761551828730,2.1436001,1160.4,1157.6,0.57523856]
[1761551828929,2.1436001,1160.3,1157.7,0.57523856]
[1761551829228,2.1436001,1160.3,1157.3,0.63974778]
[1761551829527,2.1436001,1160.3,1157.4,0.57135605]
[1761551829726,2.1436001,1160.3,1157.5,0.57135605]
[1761551829929,2.1436001,1160.3,1157.6,2.30835605]
[1761551830124,2.1436001,1160.3,1157.7,0.57135605]
[1761551830425,2.1436001,1160.4,1157.6,1.737]
[1761551830626,2.1436001,1160.4,1157.7,0.57139346]
[1761551830826,2.1436001,1160.4,1157.6,1.737]
[1761551831030,2.1436001,1160.3,1157.7,0.57140649]
[1761551831331,2.1436001,1160.3,1157.8,0.57140649]
[1761551831526,4.2872003,1161.4,1157.9,0.57140649]
[1761551831830,4.2872003,1161.4,1157.6,1.737]
[1761551832030,4.2872003,1161.4,1157.7,0.57107367]
[1761551832230,4.2872003,1161.4,1157.8,0.57107367]
[1761551832527,2.29363017,1161.5,1157.9,0.57107367]
[1761551832730,2.29363017,1161.5,1157.6,1.737]
[1761551832930,2.29363017,1161.5,1157.7,0.57094851]
[1761551833229,2.29363017,1161.5,1157.8,0.57094851]
[1761551833529,0.15003007,1161.5,1157.9,0.57094851]
[1761551833726,0.15003007,1161.5,1157.6,1.737]
[1761551833930,0.15003007,1161.5,1157.7,0.57076438]
[1761551834130,0.15003007,1161.5,1157.8,0.57076438]
[1761551834428,0.15003007,1161.5,1157.9,0.57076438]
[1761551834429,2.1436001,1160.5,1157.9,0.57076438]
[1761551834630,2.1436001,1160.5,1157.6,2.37674778]
[1761551834830,2.1436001,1160.5,1157.7,0.57040244]
[1761551835027,2.1436001,1160.5,1157.8,0.57040244]
[1761551835229,2.1436001,1160.5,1157.9,0.57040244]
[1761551835427,2.1436001,1160.7,1157.6,2.37674778]
[1761551835629,2.1436001,1160.7,1157.7,0.57029752]
[1761551835827,2.1436001,1160.7,1157.8,0.57029752]
[1761551836028,2.1436001,1160.7,1157.9,0.57029752]
[1761551836334,2.1436001,1160.7,1157.6,2.37674778]
[1761551836633,2.1436001,1160.7,1157.7,0.57018813]
[1761551836932,2.1436001,1160.7,1157.8,0.57018813]
[1761551837127,2.1436001,1160.7,1157.9,0.57018813]
[1761551837328,2.1436001,1160.7,1157.6,2.37674778]
[1761551837528,2.1436001,1160.8,1157.7,0.5700764]
[1761551837726,2.1436001,1160.8,1157.8,0.5700764]
[1761551837928,2.1436001,1160.8,1157.9,0.5700764]
[1761551838130,2.1436001,1160.8,1157.6,2.37674778]
[1761551838131,2.1436001,1160.9,1158.0,0.5700764]
[1761551838334,2.1436001,1160.9,1158.1,0.5700764]
[1761551838530,2.1436001,1160.9,1158.2,0.5700764]
[1761551838830,2.1436001,1161.1,1157.8,0.63974778]
[1761551839034,2.1436001,1161.1,1157.9,0.56967431]
[1761551839231,2.1436001,1161.1,1157.6,2.58744069]
[1761551839232,3.0010402,1161.3,1158.0,0.56967431]
[1761551839434,3.0010402,1161.3,1158.1,0.56967431]
[1761551839632,0.15003007,1161.5,1158.2,0.56967431]
[1761551839835,0.15003007,1161.5,1157.6,2.37674778]
[1761551840131,0.15003007,1161.5,1157.7,0.56979024]
[1761551840333,0.15003007,1161.5,1157.8,0.56979024]
[1761551840532,0.15003007,1161.5,1157.9,0.56979024]
[1761551840732,0.15003007,1161.5,1158.0,0.56979024]
[1761551840934,0.15003007,1161.5,1158.1,0.56979024]
[1761551841133,0.15003007,1161.5,1158.2,0.56979024]
[1761551841333,0.15003007,1161.5,1157.6,2.37674778]
[1761551841534,0.15003007,1161.5,1157.7,0.57021542]
[1761551841734,0.15003007,1161.5,1157.8,0.57021542]
[1761551841932,0.15003007,1161.5,1157.9,0.57021542]
[1761551842138,0.15003007,1161.5,1158.0,0.57021542]
[1761551842436,0.15003007,1161.5,1158.1,0.57021542]
[1761551842639,0.15003007,1161.5,1158.2,0.57021542]
[1761551842836,2.29363017,1161.5,1157.6,2.37674778]
[1761551843041,2.29363017,1161.5,1157.7,0.5702314]
[1761551843238,2.29363017,1161.5,1157.8,0.5702314]
[1761551843538,2.29363017,1161.5,1157.9,0.5702314]
[1761551843737,2.29363017,1161.5,1158.0,0.5702314]
[1761551843941,2.1436001,1161.4,1158.1,0.5702314]
[1761551844137,2.1436001,1161.4,1157.6,2.37674778]
[1761551844337,2.1436001,1161.4,1157.7,0.57020587]
[1761551844541,2.29363017,1161.5,1157.8,0.57020587]
[1761551844737,2.29363017,1161.5,1157.9,0.57020587]
[1761551844940,2.29363017,1161.5,1158.0,0.57020587]
[1761551845138,2.29363017,1161.5,1158.1,0.57020587]
[1761551845346,2.29363017,1161.5,1157.6,2.37674778]
[1761551845544,2.1436001,1160.8,1157.7,0.5703095]
[1761551845745,2.1436001,1160.8,1157.8,0.5703095]
[1761551845944,2.1436001,1160.8,1157.9,0.5703095]
[1761551846143,2.1436001,1160.8,1158.0,0.5703095]
[1761551846444,2.1436001,1160.8,1157.6,2.37674778]
[1761551846640,2.1436001,1160.8,1157.7,0.5702377]
[1761551846845,2.1436001,1160.8,1157.6,1.737]
[1761551847040,2.1436001,1161.0,1157.6,1.737]
[1761551847640,2.1436001,1160.8,1157.6,1.737]
[1761551848046,2.1436001,1160.6,1157.6,1.737]
[1761551848747,2.1436001,1160.5,1157.6,1.737]
[1761551850043,2.1436001,1160.7,1157.6,1.737]
[1761551850446,2.1436001,1160.3,1157.6,1.737]
[1761551850946,2.1436001,1160.3,1156.9,0.63974778]
[1761551851142,2.1436001,1160.3,1157.0,0.56746742]
[1761551851443,2.1436001,1160.3,1157.1,0.56746742]
[1761551851646,2.1436001,1160.3,1157.2,0.56746742]
[1761551851843,2.1436001,1160.3,1157.3,0.56746742]
[1761551852049,6.4308004,1161.2,1157.4,0.56746742]
[1761551852343,6.4308004,1161.2,1156.9,0.63974778]
[1761551852548,4.2872003,1161.2,1157.0,0.56706636]
[1761551852747,4.2872003,1161.2,1157.1,0.56706636]
[1761551852948,4.2872003,1161.2,1157.2,0.56706636]
[1761551853148,2.1436001,1161.3,1157.3,0.56706636]
[1761551853350,2.1436001,1161.3,1157.4,0.56706636]
[1761551853550,2.1436001,1161.3,1157.5,1.466]
[1761551854152,2.1436001,1160.5,1157.5,1.466]
[1761551854751,2.1436001,1160.6,1157.5,1.466]
[1761551855052,2.1436001,1161.2,1157.5,1.466]
[1761551857250,2.1436001,1161.3,1157.6,0.56640191]
[1761551857453,2.1436001,1161.3,1157.7,0.56640191]
[1761551857649,2.1436001,1161.3,1157.5,1.466]
[1761551857853,2.1436001,1161.4,1157.6,0.56666819]
[1761551858149,2.1436001,1161.4,1157.7,0.56666819]
[1761551858356,0.15003007,1161.5,1157.5,1.466]
[1761551858357,2.1436001,1161.3,1157.5,1.466]
[1761551858552,2.1436001,1161.3,1157.6,0.56672117]
[1761551858753,2.1436001,1161.3,1157.7,0.56672117]
[1761551858951,2.1436001,1161.3,1157.5,1.466]
[1761551859153,2.1436001,1161.3,1157.6,0.56672202]
[1761551859350,2.1436001,1161.2,1157.7,0.56672202]
[1761551859554,2.1436001,1161.2,1157.5,1.466]
[1761551859753,2.1436001,1161.2,1157.6,0.56685343]
[1761551859955,2.1436001,1161.3,1157.7,0.56685343]
[1761551860156,2.1436001,1161.3,1157.5,1.466]
[1761551860356,2.1436001,1161.3,1157.6,0.56711331]
[1761551860556,2.1436001,1161.3,1157.7,0.56711331]
[1761551860857,2.1436001,1161.3,1157.5,1.466]
[1761551861057,2.1436001,1161.0,1157.6,0.56707055]
[1761551861353,2.1436001,1161.0,1157.7,0.56707055]
[1761551861557,2.1436001,1160.9,1157.8,0.56707055]
[1761551861757,2.1436001,1160.9,1157.9,0.56701642]
[1761551861955,2.1436001,1160.9,1157.5,2.10574778]
[1761551862156,2.1436001,1160.9,1157.6,0.56701516]
[1761551862359,2.1436001,1160.9,1157.7,0.56701516]
[1761551862655,2.1436001,1160.8,1157.8,0.56701516]
[1761551862856,2.1436001,1160.8,1157.5,1.466]
[1761551863060,2.1436001,1160.8,1157.6,0.56725985]
[1761551863355,2.1436001,1160.8,1157.7,0.56725985]
[1761551863559,2.1436001,1160.7,1157.5,1.466]
[1761551863855,2.1436001,1160.7,1157.6,0.56738962]
[1761551864055,2.1436001,1160.7,1157.7,0.56738962]
[1761551864261,2.1436001,1160.7,1157.5,1.466]
[1761551864559,2.1436001,1160.7,1157.6,0.56750543]
[1761551864753,2.1436001,1160.7,1157.5,1.466]
[1761551864754,2.1436001,1160.7,1157.7,0.56750543]
[1761551864958,2.1436001,1160.7,1157.5,1.466]
[1761551865155,2.1436001,1160.7,1157.6,0.56750529]
[1761551865355,2.1436001,1160.7,1157.7,0.56750529]
[1761551865559,2.1436001,1160.7,1157.5,1.466]
[1761551865856,2.1436001,1160.7,1157.6,0.56765493]
[1761551866057,3.0010402,1161.0,1157.7,0.56765493]
[1761551866355,3.0010402,1161.0,1157.8,0.56765493]
[1761551866657,0.15003007,1161.5,1157.5,1.466]
[1761551866958,0.15003007,1161.5,1157.6,0.56800619]
[1761551867155,0.15003007,1161.5,1157.7,0.56800619]
[1761551867359,0.15003007,1161.5,1157.8,0.56800619]
[1761551867556,0.15003007,1161.5,1157.5,1.466]
[1761551867757,0.15003007,1161.5,1157.6,0.56817724]
[1761551867960,0.15003007,1161.5,1157.7,0.56817724]
[1761551868156,0.15003007,1161.5,1157.8,0.56817724]
[1761551868461,0.15003007,1161.5,1157.5,1.466]
[1761551868659,0.15003007,1161.5,1157.6,0.56837723]
[1761551868858,0.15003007,1161.5,1157.7,0.56837723]
[1761551869060,0.15003007,1161.5,1157.8,0.56837723]
[1761551869256,0.15003007,1161.5,1157.5,1.466]
[1761551869463,0.15003007,1161.5,1157.6,0.56859394]
[1761551869761,2.1436001,1161.2,1157.7,0.56859394]
[1761551869960,2.1436001,1161.2,1157.8,0.56859394]
[1761551870256,2.1436001,1161.1,1157.9,0.56859394]
[1761551870461,2.1436001,1161.1,1157.5,1.466]
[1761551870662,2.1436001,1161.1,1157.6,0.56872656]
[1761551870960,2.1436001,1161.1,1157.7,0.56872656]
[1761551871162,2.1436001,1161.1,1157.8,0.56872656]
[1761551871363,2.1436001,1161.0,1157.9,0.56872656]
[1761551871559,2.1436001,1161.0,1157.5,1.466]
[1761551871759,2.1436001,1161.0,1157.6,0.56905359]
[1761551871961,2.1436001,1161.0,1157.7,0.56905359]
[1761551872159,2.1436001,1161.0,1157.8,0.56905359]
[1761551872358,2.1436001,1161.0,1157.9,0.56905359]
[1761551872659,2.1436001,1161.0,1157.5,1.466]
[1761551872863,2.1436001,1161.2,1157.6,0.569426]
[1761551873063,2.1436001,1161.2,1157.5,1.466]
[1761551873064,2.1436001,1161.2,1157.7,0.569426]
[1761551873262,2.1436001,1161.2,1157.8,0.569426]
[1761551873464,2.1436001,1161.2,1157.5,1.466]
[1761551873658,2.1436001,1161.2,1157.6,0.5696367]
[1761551873858,3.0010402,1160.8,1157.7,0.5696367]
[1761551874062,2.1436001,1160.4,1157.8,0.5696367]
[1761551874262,2.1436001,1160.4,1157.5,2.10574778]
[1761551874459,2.1436001,1160.4,1157.6,0.56989349]
[1761551874658,2.1436001,1160.4,1157.7,0.56989349]
[1761551874858,2.1436001,1160.4,1157.8,0.56989349]
[1761551875059,2.1436001,1160.4,1157.5,2.10574778]
[1761551875263,2.1436001,1160.4,1157.6,0.56989395]
[1761551875460,2.1436001,1160.4,1157.7,0.56989395]
[1761551875663,2.1436001,1160.3,1157.8,0.56989395]
[1761551875865,2.1436001,1160.3,1157.5,2.10574778]
[1761551876062,2.1436001,1160.3,1157.6,0.57020098]
[1761551876260,2.1436001,1160.3,1157.7,0.57020098]
[1761551876461,2.1436001,1160.3,1157.8,0.57020098]
[1761551876664,2.1436001,1160.2,1157.9,0.57020098]
[1761551876965,2.1436001,1160.2,1157.5,1.466]
[1761551877166,2.1436001,1161.0,1157.6,0.57052319]
[1761551877362,2.1436001,1161.0,1157.7,0.57052319]
[1761551877562,2.1436001,1161.2,1157.8,0.57052319]
[1761551877764,2.1436001,1161.2,1157.9,0.57052319]
[1761551877962,2.1436001,1161.2,1157.5,1.466]
[1761551878165,2.1436001,1161.2,1157.6,0.57074532]
[1761551878364,2.1436001,1161.2,1157.7,0.57074532]
[1761551878563,2.1436001,1161.2,1157.8,0.57074532]
[1761551878767,2.1436001,1161.1,1157.9,0.57074532]
[1761551878964,2.1436001,1161.1,1157.5,1.466]
[1761551879169,2.1436001,1161.1,1157.6,0.57096872]
[1761551879464,2.1436001,1161.1,1157.7,0.57096872]
[1761551879768,2.1436001,1161.1,1157.5,1.466]
[1761551879769,2.1436001,1161.1,1157.8,0.57096872]
[1761551879966,2.1436001,1161.1,1157.9,0.57096872]
[1761551880171,2.1436001,1160.6,1158.0,0.57096872]
[1761551880371,2.1436001,1160.6,1157.5,2.10574778]
[1761551880567,2.1436001,1160.6,1157.6,0.57167911]
[1761551880767,2.1436001,1160.6,1157.7,0.57167911]
[1761551880971,2.1436001,1160.6,1157.8,0.57167911]
[1761551881171,2.1436001,1160.6,1157.9,0.57167911]
[1761551881367,2.1436001,1160.6,1157.5,1.466]
[1761551881368,2.1436001,1160.7,1158.0,0.57167911]
[1761551881573,2.1436001,1160.7,1158.1,0.57167911]
[1761551881770,2.1436001,1160.8,1157.7,0.63974778]
[1761551881967,2.1436001,1160.8,1157.8,0.57186223]
[1761551882168,2.1436001,1160.8,1157.9,0.57186223]
[1761551882467,2.1436001,1160.6,1158.0,0.57186223]
[1761551882666,2.1436001,1160.6,1158.1,0.57186223]
[1761551882866,2.1436001,1160.6,1157.7,0.63974778]
[1761551883069,2.1436001,1160.6,1157.8,0.57193441]
[1761551883267,2.1436001,1160.6,1157.9,0.57193441]
[1761551883571,2.1436001,1160.6,1158.0,0.57193441]
[1761551883771,2.1436001,1160.6,1158.1,0.57193441]
[1761551883973,2.1436001,1160.6,1157.7,0.63974778]
[1761551884174,2.1436001,1160.6,1157.8,0.57200397]
[1761551884473,2.1436001,1160.6,1157.9,0.57200397]
[1761551884671,2.1436001,1160.6,1158.0,0.57200397]
[1761551884974,3.0010402,1161.1,1158.1,0.57200397]
[1761551885274,2.1436001,1161.4,1158.2,0.57200397]
[1761551885475,2.1436001,1161.4,1158.3,1.404]
[1761551890675,2.29363017,1161.5,1158.3,1.404]
[1761551892671,2.1436001,1160.5,1158.3,1.404]
[1761551893776,2.1436001,1160.7,1158.3,1.404]
[1761551895278,2.1436001,1160.5,1158.3,1.404]
[1761551895875,2.1436001,1161.1,1158.3,1.404]
[1761551896380,2.1436001,1161.2,1158.3,1.404]
[1761551897980,2.1436001,1160.9,1158.3,1.404]
[1761551898376,2.1436001,1160.8,1158.3,1.404]
[1761551898981,2.1436001,1161.0,1158.3,1.404]
[1761551899386,2.1436001,1160.5,1158.3,1.404]
[1761551899977,2.1436001,1160.4,1158.3,1.404]
[1761551900381,2.1436001,1160.0,1158.3,1.404]
[1761551900977,2.1436001,1160.1,1158.3,1.404]
[1761551901482,2.1436001,1159.8,1158.3,1.404]
[1761551902180,2.1436001,1160.1,1158.3,1.404]
[1761551903582,2.1436001,1160.3,1158.3,1.404]
[1761551904182,2.1436001,1160.2,1158.3,1.404]
[1761551906181,2.1436001,1160.1,1158.3,1.404]
[1761551906685,2.1436001,1159.7,1158.3,1.404]
[1761551907282,2.1436001,1160.2,1158.3,1.404]
[1761551907785,2.1436001,1160.3,1158.3,1.404]
[1761551908281,4.2872003,1160.7,1158.3,1.404]
[1761551908985,2.1436001,1161.1,1158.3,1.404]
[1761551909384,2.1436001,1161.0,1158.3,1.404]
[1761551909786,2.1436001,1160.1,1158.3,1.404]
[1761551910386,2.1436001,1160.2,1158.3,1.404]
[1761551912489,2.1436001,1160.3,1158.3,1.404]
[1761551914493,2.1436001,1160.4,1158.3,1.404]
[1761551915493,2.1436001,1160.8,1158.3,1.404]
[1761551916489,2.1436001,1159.4,1158.3,1.404]
[1761551916790,2.1436001,1159.4,1158.3,0.3216164]
[1761551917194,2.1436001,1159.2,1158.3,0.3216164]
[1761551917790,2.1436001,1159.5,1158.3,0.3216164]
[1761551918089,2.1436001,1159.7,1158.3,0.3216164]
[1761551918590,2.1436001,1159.9,1158.3,0.3216164]
[1761551919101,2.1436001,1160.2,1158.3,0.3216164]
[1761551919801,2.1436001,1160.3,1158.3,0.3216164]
[1761551920201,2.1436001,1160.0,1158.3,0.3216164]
[1761551920698,2.1436001,1159.2,1158.3,0.3216164]
[1761551921702,2.1436001,1159.3,1158.3,0.3216164]
[1761551922301,2.1436001,1159.6,1158.3,0.3216164]
[1761551922804,2.1436001,1159.7,1158.3,0.3216164]
[1761551923806,2.1436001,1159.8,1158.3,0.3216164]
[1761551924306,2.1436001,1159.9,1158.3,0.3216164]
[1761551925304,2.1436001,1160.0,1158.3,0.3216164]
[1761551927507,2.1436001,1160.1,1158.3,0.3216164]
[1761551928008,2.1436001,1160.3,1158.3,0.3216164]
[1761551929508,2.1436001,1160.4,1158.3,0.3216164]
[1761551930207,2.1436001,1160.5,1158.3,0.3216164]
[1761551932108,2.1436001,1160.4,1158.3,0.3216164]
[1761551933112,0.15003007,1161.5,1158.3,0.3216164]
[1761551933407,2.1436001,1161.1,1158.3,0.3216164]
[1761551934012,2.1436001,1160.5,1158.3,0.3216164]
[1761551934511,3.0010402,1160.9,1158.3,0.3216164]
[1761551935213,2.1436001,1161.2,1158.3,0.3216164]
[1761551935713,3.15107027,1161.5,1156.9,0.63974778]
[1761551935913,3.15107027,1161.5,1157.0,0.60532248]
[1761551936110,0.15003007,1161.5,1157.1,0.60532248]
[1761551936313,0.15003007,1161.5,1157.2,0.60532248]
[1761551936513,0.15003007,1161.5,1157.3,0.60532248]
[1761551936714,2.29363017,1161.5,1156.7,0.63974778]
[1761551937010,2.29363017,1161.5,1156.8,0.58875013]
[1761551937213,2.29363017,1161.5,1156.9,0.58875013]
[1761551937409,2.29363017,1161.5,1157.0,0.58875013]
[1761551937610,2.29363017,1161.5,1157.1,0.58875013]
[1761551937813,2.29363017,1161.5,1157.2,0.58875013]
[1761551938119,2.29363017,1161.5,1156.6,0.63974778]
[1761551938316,2.29363017,1161.5,1156.7,0.5887713]
[1761551938516,2.29363017,1161.5,1156.8,1.7937713]
[1761551938717,0.15003007,1161.5,1156.9,0.5887713]
[1761551939017,0.15003007,1161.5,1157.0,0.5887713]
[1761551939217,0.15003007,1161.5,1157.1,0.5887713]
[1761551939414,0.15003007,1161.5,1157.2,0.5887713]
[1761551939715,0.15003007,1161.5,1156.8,1.205]
[1761551939917,0.15003007,1161.5,1156.9,0.58889989]
[1761551940117,0.15003007,1161.5,1157.0,0.58889989]
[1761551940313,0.15003007,1161.5,1156.8,1.205]
[1761551940314,0.15003007,1161.5,1157.1,0.58889989]
[1761551940513,0.15003007,1161.5,1156.8,1.205]
[1761551940719,2.1436001,1161.2,1156.9,0.58892042]
[1761551940916,2.1436001,1161.2,1157.0,0.58892042]
[1761551941219,2.1436001,1161.2,1157.1,0.58892042]
[1761551941514,2.1436001,1161.1,1156.8,1.205]
[1761551941717,2.1436001,1161.1,1156.9,0.58902427]
[1761551941915,2.1436001,1160.4,1156.8,1.205]
[1761551942116,2.1436001,1160.4,1156.9,0.5890855]
[1761551942322,2.1436001,1160.4,1156.8,1.205]
[1761551942520,2.1436001,1160.4,1156.9,0.58918677]
[1761551942716,2.1436001,1160.4,1156.8,1.205]
[1761551943421,2.1436001,1160.3,1156.8,1.205]
[1761551944021,2.1436001,1160.2,1156.8,1.205]
[1761551944420,2.1436001,1160.1,1156.8,1.205]
[1761551945519,2.1436001,1160.2,1156.8,1.205]
[1761551946525,2.1436001,1160.1,1156.8,1.205]
[1761551947020,3.0010402,1160.5,1156.8,1.205]
[1761551947725,0.15003007,1161.5,1156.8,1.205]
[1761551950123,2.1436001,1160.6,1156.8,1.205]
[1761551951725,2.1436001,1160.5,1156.8,1.205]
[1761551953927,2.1436001,1160.2,1156.8,1.205]
[1761551954531,2.1436001,1159.7,1156.8,1.205]
[1761551955033,2.1436001,1160.4,1156.8,1.205]
[1761551955529,2.1436001,1160.3,1156.8,1.205]
[1761551956629,2.1436001,1160.1,1156.8,1.205]
[1761551957631,2.1436001,1160.0,1156.8,1.205]
[1761551958230,2.1436001,1160.1,1156.8,1.205]
[1761551958636,2.1436001,1160.0,1156.8,1.205]
[1761551959236,2.1436001,1159.0,1156.8,1.205]
[1761551960736,2.1436001,1158.9,1156.8,1.205]
[1761551961437,2.1436001,1158.9,1155.9,0.63974778]
[1761551961737,2.1436001,1158.9,1156.0,0.58273151]
[1761551961937,2.1436001,1158.9,1156.1,0.58273151]
[1761551962134,2.1436001,1158.9,1156.2,0.58273151]
[1761551962437,2.1436001,1159.0,1156.3,0.58273151]
[1761551962633,2.1436001,1159.0,1155.9,0.63974778]
[1761551962836,2.1436001,1159.0,1156.0,0.5828341]
[1761551963036,2.1436001,1159.0,1156.1,0.5828341]
[1761551963234,2.1436001,1160.0,1156.2,0.5828341]
[1761551963438,2.1436001,1160.0,1156.3,0.5828341]
[1761551963739,2.1436001,1160.0,1155.8,0.63974778]
[1761551963940,2.1436001,1159.6,1155.9,0.58294543]
[1761551964138,2.1436001,1159.6,1156.0,0.58294543]
[1761551964338,2.1436001,1159.6,1156.1,2.23994543]
[1761551964538,2.1436001,1159.6,1156.2,0.58294543]
[1761551964837,2.1436001,1158.9,1156.3,0.58294543]